Cogmind - Beta 10.1 @@@ ROGUE MODE // 2020.09.25 @ 12:17:26 Player: Mr.Manatee Result: Destroyed by S-10 Pest with Light Assault Rifle Performance ------------- Evolutions (1) 500 Regions Visited (4) 800 Robots Destroyed (4) 20 Value Destroyed (134) 134 Prototype IDs (3) 60 Alien Tech Used (0) 0 Bonus (0) 0 TOTAL SCORE: 1514 Bonus ------- None Cogmind --------- Core Integrity 0/400 Matter 263/300 Energy 99/100 System Corruption 0% Temperature Cool (0) Movement Core (50) Location -9/Mines Parts ------- > --- POWER (1) -------- (None) > --- PROPULSION (2) --- (None) > --- UTILITY (4) ------ Signal Interpreter Signal Interpreter > --- WEAPON (2) ------- (None) > --- INVENTORY (4) ---- Light Ion Engine Decoy Drone Bay (13/16) Mini Grenade Launcher Peak State ------------ > --- POWER ------------ Light Ion Engine > --- PROPULSION ------- Flight Unit Flight Unit > --- UTILITY ---------- Decoy Drone Bay > --- WEAPON ----------- EM Pulse Gun Small Laser > --- INVENTORY -------- Light Ion Engine Small Storage Unit Large Storage Unit EM Pulse Gun [Rating: 19] Favorites ----------- Power Light Ion Engine Engine Light Ion Engine Propulsion Flight Unit Flight Unit Flight Unit Utility Signal Interpreter Device Sensor Array Processor Signal Interpreter Weapon EM Pulse Gun Energy Gun EM Pulse Gun Build | -11 -10 -10 -9 -9 ------- Run | Scr Mat Min Mat Min Slots Evolved 2 | . . . 2 . Power . | . . . . . Propulsion . | . . . . . Utility 2 | . . . 2 . Weapon . | . . . . . Parts Attached 13 | 2 3 3 4 1 Power 1 | . 1 . . . Engine 1 | . 1 . . . Core . | . . . . . Reactor . | . . . . . Propulsion 2 | . 2 . . . Treads . | . . . . . Leg . | . . . . . Wheel . | . . . . . Hover . | . . . . . Flight 2 | . 2 . . . Utility 6 | . . 2 3 1 Device 4 | . . 2 1 1 Storage . | . . . . . Processor 2 | . . . 2 . Hackware . | . . . . . Protection . | . . . . . Artifact . | . . . . . Weapon 4 | 2 . 1 1 . Energy Gun 4 | 2 . 1 1 . Energy Cannon . | . . . . . Ballistic Gun . | . . . . . Ballistic Cannon . | . . . . . Launcher . | . . . . . Special Weapon . | . . . . . Impact Weapon . | . . . . . Slashing Weapon . | . . . . . Piercing Weapon . | . . . . . Special Melee Weapon . | . . . . . Unidentified Prototypes 1 | . . 1 . . Parts Lost 7 | . . . 7 . Power 1 | . . . 1 . Propulsion 2 | . . . 2 . Utility 1 | . . . 1 . Weapon 3 | . . . 3 . Highest Loss Streak 7 | . . . 7 . Average Slot Usage (%) 47 | . 36 83 38 25 Engine 5 | . 2 14 4 . Flight 11 | . 6 28 7 . Device 5 | . . 12 5 3 Processor 7 | . . . 12 22 Energy Gun 17 | . 28 28 8 . Naked Turns 6 | . . . 6 . Heaviest Build 8 | 3 6 8 8 . Greatest Support 8 | 3 8 8 8 3 Greatest Overweight (x) . | . . . . . Average Overweight (x) . | . . . . . Largest Inventory Capacity 4 | 4 4 4 4 4 Average Capacity 4 | 4 4 4 4 4 Most Carried 4 | 4 4 4 4 4 Average Carried 3 | 2 3 3 3 3 Final Capacity 4 | 4 4 4 4 4 Final Carried 4 | 4 4 4 4 4 Class Distribution -------------------- 100% | Mutant Dominant Class ---------------- Mutant | -10/Materials Mutant | -10/Mines Mutant | -9/Materials Mutant | -9/Mines Resources | -11 -10 -10 -9 -9 ----------- Run | Scr Mat Min Mat Min Matter Collected 280 | 220 30 30 . . Remotely . | . . . . . Salvage Created 97 | . 50 . 47 . Parts 3 | . 3 . . . Haulers Intercepted . | . . . . . Recyclers Shooed . | . . . . . Parts Field Recycled . | . . . . . Retrieved Matter . | . . . . . Parts Self-Destructed . | . . . . . Prevented . | . . . . . Kills | -11 -10 -10 -9 -9 ------- Run | Scr Mat Min Mat Min Combat Hostiles Destroyed 4 | . 3 . 1 . Guns 3 | . 3 . . . Classes Destroyed 2 | . 1 . 1 . Swarmer 3 | . 3 . . . Grunt 1 | . . . 1 . Best Kill Streak 3 | . 3 . 1 . Combat Bots Only 3 | . 3 . 1 . Max Kills in Single Turn 1 | . 1 . 1 . Gunslinging . | . . . . . Exploded . | . . . . . Melee . | . . . . . Uniques/NPCs Destroyed . | . . . . . Combat | -11 -10 -10 -9 -9 -------- Run | Scr Mat Min Mat Min Damage Taken 724 | . 88 . 623 13 Core 434 | . 33 . 388 13 Absorbed by Shields . | . . . . . Core Remaining (%) 93 | 100 . 86 . . Volleys Fired 19 | . 5 . 14 . Largest 2 | . 2 . 2 . Hottest 80 | . 80 . 80 . Shots Fired 31 | . 10 . 21 . Gun 31 | . 10 . 21 . Cannon . | . . . . . Launcher . | . . . . . Special . | . . . . . Kinetic . | . . . . . Thermal 6 | . 5 . 1 . Explosive . | . . . . . Electromagnetic 25 | . 5 . 20 . Robot Hit Streak 6 | . 5 . 6 . Robot Miss Streak 2 | . 1 . 2 . Penetration Max . | . . . . . Secondary Targets . | . . . . . Shots Hit Robots 21 | . 6 . 15 . Core Hits 5 | . 3 . 2 . Critical Hits . | . . . . . Critical Kills . | . . . . . Critical Parts Destroyed . | . . . . . Melee Attacks . | . . . . . Impact . | . . . . . Slashing . | . . . . . Piercing . | . . . . . Sneak Attacks . | . . . . . Combat Hostiles . | . . . . . Follow-up Attacks . | . . . . . Damage Inflicted 304 | . 59 . 245 . Guns 237 | . 59 . 178 . Cannons . | . . . . . Explosions 67 | . . . 67 . Melee . | . . . . . Ramming . | . . . . . Kinetic . | . . . . . Thermal 101 | . 24 . 77 . Explosive . | . . . . . Electromagnetic 203 | . 35 . 168 . Impact . | . . . . . Slashing . | . . . . . Piercing . | . . . . . Highest Corruption 2 | . 2 2 . . Average Corruption 2 | . 2 2 . . Corruption Purged . | . . . . . Effects 3 | . . 3 . . Message Errors 1 | . . 1 . . Heat Flow Errors 1 | . . 1 . . Data Loss (minor) 1 | . . 1 . . Overload Shots . | . . . . . Overflow Damage 52 | . . . 52 . Projectiles . | . . . . . Explosions 52 | . . . 52 . Melee . | . . . . . Knockbacks . | . . . . . Impact . | . . . . . Kinetic . | . . . . . Secondary . | . . . . . Self-Inflicted Damage . | . . . . . Shots . | . . . . . Rammed 1 | . . . 1 . Targets Rammed 1 | . . . 1 . Kicked . | . . . . . Crushed . | . . . . . Highest Temperature 244 | . 15 244 173 . Average Temperature 89 | . 8 136 98 . Received Heat Transfer 237 | . . . 237 . Siege Activations . | . . . . . Robots Corrupted 1 | . . . 1 . Combat Hostiles 1 | . . . 1 . Parts Fried . | . . . . . Impact Corruptions . | . . . . . Robots Melted . | . . . . . Combat Hostiles . | . . . . . Parts Melted . | . . . . . Heat Transferred 125 | . 50 . 75 . Parts Sabotaged . | . . . . . Parts Stolen . | . . . . . Parts Stripped . | . . . . . Power Chain Reactions . | . . . . . Missiles Intercepted . | . . . . . Alert | -11 -10 -10 -9 -9 ------- Run | Scr Mat Min Mat Min Peak Influence 120 | . 76 29 120 42 Initial 42 | . . 29 7 42 Average 33 | . 21 21 58 36 Maximum Alert Level . | . . . . . Low Security (%) 100 | 100 100 100 100 100 Level 1 . | . . . . . Level 2 . | . . . . . Level 3 . | . . . . . Level 4 . | . . . . . Level 5 . | . . . . . High Security . | . . . . . Max Security . | . . . . . Squads Dispatched 2 | . . . 2 . Investigation 1 | . . . 1 . Extermination . | . . . . . Reinforcement 1 | . . . 1 . Assault . | . . . . . Garrison . | . . . . . Intercept . | . . . . . Construction Impeded . | . . . . . Haulers Reinforced . | . . . . . Stealth | -11 -10 -10 -9 -9 --------- Run | Scr Mat Min Mat Min Distress Signals . | . . . . . Communications Jammed . | . . . . . Distress Signals . | . . . . . Times Spotted 18 | . 3 . 12 3 Peak Tracking Total 8 | . 2 . 8 3 Tactical Retreats 4 | . . . 4 . Traps | -11 -10 -10 -9 -9 ------- Run | Scr Mat Min Mat Min Traps Triggered 2 | . 2 . . . Indirectly . | . . . . . Trap Hack Attempts . | . . . . . Triggered . | . . . . . Disarmed . | . . . . . Reprogrammed . | . . . . . Reused . | . . . . . Traps Extracted . | . . . . . Installed . | . . . . . Triggered . | . . . . . Machines | -11 -10 -10 -9 -9 ---------- Run | Scr Mat Min Mat Min Machines Disabled 1 | . . . 1 . Max in Single Turn 1 | . . . 1 . Machines Sabotaged 1 | . . . 1 . Garrisons Compromised . | . . . . . Overloaded Fab Kills . | . . . . . Fab Network Shutdowns . | . . . . . Hacking | -11 -10 -10 -9 -9 --------- Run | Scr Mat Min Mat Min Machines Accessed 9 | . 4 1 4 . Terminals 8 | . 4 . 4 . Fabricators . | . . . . . Repair Stations . | . . . . . Recycling Units . | . . . . . Scanalyzers . | . . . . . Garrison Access . | . . . . . Total Hacks 16 | . 7 1 8 . Successful 8 | . 3 1 4 . Failed 7 | . 3 . 4 . Catastrophic 3 | . 1 . 2 . Database Lockouts 1 | . 1 . . . Manual 13 | . 7 . 6 . Terminals 15 | . 7 . 8 . Fabricators . | . . . . . Repair Stations . | . . . . . Recycling Units . | . . . . . Scanalyzers . | . . . . . Garrison Access . | . . . . . Terminal Hacks 7 | . 3 1 3 . Robot Analysis 2 | . 1 . 1 . Prototype ID Bank 1 | . 1 . . . Open Door 1 | . . 1 . . Level Access Points 1 | . . . 1 . Terminal Index 1 | . 1 . . . Registered Components 1 | . . . 1 . Fabricator Hacks . | . . . . . Repair Station Hacks . | . . . . . Recycling Unit Hacks . | . . . . . Scanalyzer . | . . . . . Garrison Access Hacks . | . . . . . Unauthorized Hacks 1 | . . . 1 . Terminals 1 | . . . 1 . Sabotage 1 | . . . 1 . Fabricators . | . . . . . Repair Stations . | . . . . . Recycling Units . | . . . . . Scanalyzers . | . . . . . Garrison Access . | . . . . . Data Cores Recovered . | . . . . . Used . | . . . . . Hacking Detections 6 | . 3 . 3 . Full Trace Events 1 | . . . 1 . Feedback Events . | . . . . . Feedback Blocked . | . . . . . Robot Schematics Acquired . | . . . . . Robots Built . | . . . . . Matter . | . . . . . Time . | . . . . . Total Robot Build Rating . | . . . . . Part Schematics Acquired . | . . . . . Parts Built . | . . . . . Matter . | . . . . . Time . | . . . . . Total Part Build Rating . | . . . . . Parts Repaired . | . . . . . Time . | . . . . . Parts Recycled . | . . . . . Recycled Matter . | . . . . . Retrieved Matter . | . . . . . Retrieved Components . | . . . . . Parts Scanalyzed . | . . . . . Part Schematics Acquired . | . . . . . Parts Damaged . | . . . . . Bothacking | -11 -10 -10 -9 -9 ------------ Run | Scr Mat Min Mat Min Used RIF Installer . | . . . . . Robots Hacked . | . . . . . Non-combat . | . . . . . Combat . | . . . . . Robot Hacks Applied . | . . . . . Relay Couplers Released . | . . . . . Robots Rewired . | . . . . . Allies Hacked . | . . . . . Hacks Repelled . | . . . . . Allies | -11 -10 -10 -9 -9 -------- Run | Scr Mat Min Mat Min Total Allies . | . . . . . Largest Group . | . . . . . Highest-Rated Group . | . . . . . Highest-Rated Ally . | . . . . . Total Orders 2 | . . 1 . 1 EXPLORE 2 | . . 1 . 1 Ally Attacks . | . . . . . Total Damage . | . . . . . Kills . | . . . . . Allies Corrupted . | . . . . . Allies Melted . | . . . . . Intel | -11 -10 -10 -9 -9 ------- Run | Scr Mat Min Mat Min Robot Analysis Total 2 | . 1 . 1 . Derelict Logs Recovered 1 | . . . . 1 Drone Launches 3 | . . 1 1 1 Drone Recoveries . | . . . . . Exploration | -11 -10 -10 -9 -9 ------------- Run | Scr Mat Min Mat Min Turns Passed 673 | 30 180 166 207 90 Spaces Moved 1108 | 44 316 330 306 112 Core 579 | 44 253 . 170 112 Treads . | . . . . . Legs . | . . . . . Wheels . | . . . . . Hover . | . . . . . Flight 529 | . 63 330 136 . Fastest Speed 37 | 50 37 37 37 50 Average Speed 43 | 50 47 37 44 50 Slowest Speed 50 | 50 50 37 50 50 Overloaded Moves . | . . . . . Propulsion Burnouts . | . . . . . Robots Hopped 9 | . . 9 . . Cave-ins Triggered . | . . . . . Exploration Rate (%) 48 | 2 56 81 44 58 Regions Visited 4 Branch Regions 2 Pre-discovered Areas 2 | . . 1 . 1 Known Exits Taken 1 | . . . 1 . Unknown Exits Taken 3 | 1 1 1 . . Scrap Searched 1 | . . 1 . . Spaces Dug . | . . . . . Terrain Destroyed 43 | . . . 43 . Melee . | . . . . . Projectile . | . . . . . AOE 43 | . . . 43 . Terrain Rammed . | . . . . . Walls Destroyed . | . . . . . Machines Disabled . | . . . . . Actions | -11 -10 -10 -9 -9 --------- Run | Scr Mat Min Mat Min Total 1254 | 51 338 364 355 146 Wait 107 | . 8 38 29 32 Move 1087 | 43 315 312 305 112 Hop 8 | . . 8 . . Pick Up 11 | 6 4 . 1 . Fast Attach 6 | . 2 2 2 . Attach 6 | 2 1 . 2 1 Detach 3 | . . 1 1 1 Swap 1 | . . 1 . . Drop 5 | . 3 2 . . Fire 19 | . 5 . 14 . Melee . | . . . . . Ram 1 | . . . 1 . Kick . | . . . . . Crush . | . . . . . Escape Stasis . | . . . . . Rewire . | . . . . . Trap . | . . . . . Miscellaneous . | . . . . . Route ------- -11/Scrapyard -10/Materials (discovered 4 exits: *Mat x2 / *Min x2) -10/Mines (discovered 2 exits: *Mat x2) -9/Materials (discovered 4 exits: Mat x3 / *Min) -9/Mines (discovered 2 exits: *Mat x2) History --------- Turn | Location | Event 12 | -11/Scrapyard | Discovered new exit (range 15) 31 | -11/Scrapyard | Entered Materials 55 | -10/Materials | Discovered new exit (range 16) 115 | -10/Materials | Discovered new exit (range 13) 115 | -10/Materials | Discovered new exit (range 7) 148 | -10/Materials | Discovered new exit (range 14) 188 | -10/Materials | Central database locked down 211 | -10/Materials | Entered Mines 213 | -10/Mines | Found the Drone Emporium 214 | -10/Mines | Found Prototype Device 214 | -10/Mines | Identified Decoy Drone Bay 242 | -10/Mines | Discovered new exit (range 47) 301 | -10/Mines | Discovered new exit (range 8) 312 | -10/Mines | Build established: Mutant 342 | -10/Mines | Learned location of Storage (-9) 377 | -10/Mines | Entered Materials 377 | -9/Materials | Evolved 2 slots: Utility x2 467 | -9/Materials | Core integrity fell below 50% 494 | -9/Materials | Lost 7 parts (1p2n1u3w) 507 | -9/Materials | Core integrity fell below 20% 538 | -9/Materials | Identified exit to Materials 555 | -9/Materials | Discovered new exit (range 14) 583 | -9/Materials | Identified exit to Mines 584 | -9/Materials | Entered Mines 604 | -9/Mines | Met a Derelict bent on vengeance 612 | -9/Mines | Discovered exit to Materials (range 57) 620 | -9/Mines | Discovered exit to Materials (range 77) 674 | -9/Mines | Destroyed by S-10 Pest with Light Assault Rifle Last Messages --------------- LOCATION=MINES GOAL=ESCAPE Something is scanning the area. 00594_ K-01 Serf collects debris. 00597_ Decoy Drone released from Decoy Drone Bay. 00597_ K-01 Serf cleans the Plasma Injector. 00601_ K-01 Serf collects debris. 00604_ K-01 Serf cleans the Plasma Injector. 00612_ EXIT=FOUND: MATERIALS 00613_ K-01 Serf cleans the Plasma Injector. 00613_ K-01 Serf collects debris. 00614_ K-01 Serf cleans the Plasma Injector. 00616_ K-01 Serf collects debris. 00619_ K-01 Serf cleans the Plasma Injector. 00620_ EXIT=FOUND: MATERIALS 00621_ K-01 Serf cleans the Plasma Injector. 00624_ Decoy Drone self-destructs. 00624_ Decoy Drone destroyed. 00646_ Acquired derelict log, extracted data. World map confirmed: -9/Storage. Map ----- +----------------------------------------------------+ | ????????????????#??? ##????????????? | | ???????????????## ?? ##???????????? | | ??????????????## ### ##??????????? | | ??????????????# ##?????????? | | ????#####?????# #?????????? | | ????# #?????# ##????????? | | ????# #????## #????????? | | ????# ?????## #????????? | | ????# #??######## ##????????? | | ????# ### ##### ##?????????? | | ????# k ##??????????? | | ????????# ##???????????? | | ????????## #### ######??????????### | | ?????????## ##??# #???????????????# | | ??????????# #???# #????????#####??# | | ??????????# k#???# #???????## #### | | ??????????# r#???# #????#### | | ????????### #???# ##??## | | ???????## #??## #### ###### | | ??????## ##?# ## ##????? | | ?????## r ### ##?????? | | ?????# ### #??????? | | ?????# u #?## ##??????? | | ?????## ##??# #???????? | | ?????## """ #???# #??????? | | ?????# """ @##### ### #??????? | | ?????# """ s ### ##?## #??????? | | ?????##